[Event "*** SCC Grand Prix: Titled Tuesday Blitz"]
[Site "Chess.com"]
[Date "2020.06.09"]
[Round "2"]
[White "moro182"]
[Black "Hikaru"]
[Result "1/2-1/2"]
[WhiteElo "2643"]
[BlackElo "3233"]
[TimeControl "180+1"]
[EndTime "9:16:35 PDT"]
[Termination "Game drawn by repetition"]

1. d4 {[%clk 0:03:00.9]} 1... Nf6 {[%clk 0:02:59.5]} 2. c4 {[%clk 0:02:59.1]}
2... e6 {[%clk 0:02:59.2]} 3. Nc3 {[%clk 0:02:58.4]} 3... Bb4 {[%clk 0:02:54]}
4. e3 {[%clk 0:02:58.4]} 4... O-O {[%clk 0:02:52.5]} 5. Bd3 {[%clk 0:02:58.5]}
5... c5 {[%clk 0:02:48.2]} 6. Nf3 {[%clk 0:02:56.2]} 6... Bxc3+ {[%clk
0:02:47.1]} 7. bxc3 {[%clk 0:02:56.1]} 7... d6 {[%clk 0:02:48]} 8. O-O {[%clk
0:02:56.3]} 8... Nc6 {[%clk 0:02:48.3]} 9. e4 {[%clk 0:02:56.3]} 9... e5 {[%clk
0:02:48.7]} 10. d5 {[%clk 0:02:55.4]} 10... Ne7 {[%clk 0:02:48.8]} 11. Nh4
{[%clk 0:02:49.4]} 11... Nd7 {[%clk 0:02:42.6]} 12. g3 {[%clk 0:02:39.1]} 12...
Nb6 {[%clk 0:02:32]} 13. f4 {[%clk 0:02:30]} 13... exf4 {[%clk 0:02:27.4]} 14.
Bxf4 {[%clk 0:02:30.9]} 14... Ng6 {[%clk 0:02:27.9]} 15. Nxg6 {[%clk 0:02:30.3]}
15... hxg6 {[%clk 0:02:23.1]} 16. e5 {[%clk 0:02:22.9]} 16... Bh3 {[%clk
0:02:13.1]} 17. Rf2 {[%clk 0:02:20.9]} 17... dxe5 {[%clk 0:02:13.4]} 18. Bxe5
{[%clk 0:02:21.8]} 18... Nd7 {[%clk 0:02:02]} 19. Bd6 {[%clk 0:02:20.1]} 19...
Re8 {[%clk 0:02:02.3]} 20. Qf3 {[%clk 0:02:18.2]} 20... Qf6 {[%clk 0:02:01.8]}
21. Qxf6 {[%clk 0:02:14.3]} 21... gxf6 {[%clk 0:02:00.1]} 22. Re2 {[%clk
0:01:59.2]} 22... Bg4 {[%clk 0:01:44.8]} 23. Rxe8+ {[%clk 0:01:52.4]} 23... Rxe8
{[%clk 0:01:44]} 24. Kf2 {[%clk 0:01:52.9]} 24... Ne5 {[%clk 0:01:41.6]} 25. Bf1
{[%clk 0:01:50.9]} 25... b6 {[%clk 0:01:35.5]} 26. a4 {[%clk 0:01:49.8]} 26...
Nf3 {[%clk 0:01:28.5]} 27. h3 {[%clk 0:01:46.5]} 27... Nd2 {[%clk 0:01:28.8]}
28. Bc7 {[%clk 0:01:42.5]} 28... Ne4+ {[%clk 0:01:22.7]} 29. Kg2 {[%clk
0:01:42.2]} 29... Bd7 {[%clk 0:01:23.6]} 30. a5 {[%clk 0:01:42.2]} 30... Nd2
{[%clk 0:01:09.1]} 31. axb6 {[%clk 0:01:38.5]} 31... axb6 {[%clk 0:01:10]} 32.
Bxb6 {[%clk 0:01:39.1]} 32... Nxf1 {[%clk 0:01:10.1]} 33. Rxf1 {[%clk 0:01:37]}
33... Re2+ {[%clk 0:01:08.4]} 34. Rf2 {[%clk 0:01:14.3]} 34... Bxh3+ {[%clk
0:01:08]} 35. Kf3 {[%clk 0:01:12.5]} 35... Bg4+ {[%clk 0:01:08.5]} 36. Kg2
{[%clk 0:01:13.1]} 36... Bh3+ {[%clk 0:00:54.5]} 37. Kf3 {[%clk 0:01:13.2]}
37... Bg4+ {[%clk 0:00:52.9]} 38. Kg2 {[%clk 0:01:13.5]} 38... Bh3+ {[%clk
0:00:51.8]} 1/2-1/2

[Event "*** SCC Grand Prix: Titled Tuesday Blitz"]
[Site "Chess.com"]
[Date "2020.06.09"]
[Round "2"]
[White "Ind1anStar"]
[Black "SergeyKarjakin"]
[Result "0-1"]
[WhiteElo "2607"]
[BlackElo "2985"]
[TimeControl "180+1"]
[EndTime "9:16:39 PDT"]
[Termination "SergeyKarjakin won by resignation"]

1. c4 {[%clk 0:03:00.9]} 1... Nf6 {[%clk 0:02:56.3]} 2. Nc3 {[%clk 0:03:00.5]}
2... e5 {[%clk 0:02:56.3]} 3. g3 {[%clk 0:02:59.9]} 3... Bb4 {[%clk 0:02:54.1]}
4. Bg2 {[%clk 0:02:58.6]} 4... O-O {[%clk 0:02:52.5]} 5. e4 {[%clk 0:02:58.1]}
5... Bxc3 {[%clk 0:02:49.1]} 6. bxc3 {[%clk 0:02:57.7]} 6... c6 {[%clk
0:02:48.7]} 7. Ne2 {[%clk 0:02:57.4]} 7... d5 {[%clk 0:02:48.4]} 8. cxd5 {[%clk
0:02:57.7]} 8... cxd5 {[%clk 0:02:49.3]} 9. exd5 {[%clk 0:02:58.3]} 9... Nxd5
{[%clk 0:02:49.9]} 10. O-O {[%clk 0:02:56.9]} 10... Nc6 {[%clk 0:02:49.4]} 11.
d4 {[%clk 0:02:50.8]} 11... Bg4 {[%clk 0:02:05.4]} 12. Bb2 {[%clk 0:02:33.2]}
12... exd4 {[%clk 0:02:00.9]} 13. cxd4 {[%clk 0:02:24.1]} 13... Re8 {[%clk
0:01:55.5]} 14. Re1 {[%clk 0:02:23.3]} 14... Qa5 {[%clk 0:01:27.7]} 15. Qb3
{[%clk 0:02:05]} 15... Rad8 {[%clk 0:01:20.1]} 16. Nc3 {[%clk 0:01:40.5]} 16...
Nb6 {[%clk 0:00:55.2]} 17. Rxe8+ {[%clk 0:00:19.7]} 0-1

[Event "*** SCC Grand Prix: Titled Tuesday Blitz"]
[Site "Chess.com"]
[Date "2020.06.09"]
[Round "2"]
[White "chargemax23"]
[Black "aa175"]
[Result "1-0"]
[WhiteElo "2678"]
[BlackElo "2370"]
[TimeControl "180+1"]
[EndTime "9:16:51 PDT"]
[Termination "chargemax23 won on time"]

1. c4 {[%clk 0:03:00.9]} 1... Nf6 {[%clk 0:02:58.7]} 2. Nc3 {[%clk 0:03:01.1]}
2... d5 {[%clk 0:02:56.8]} 3. cxd5 {[%clk 0:03:00.8]} 3... Nxd5 {[%clk
0:02:57.7]} 4. Nf3 {[%clk 0:03:01.3]} 4... g6 {[%clk 0:02:57.6]} 5. h4 {[%clk
0:03:01]} 5... h5 {[%clk 0:02:54.9]} 6. Qb3 {[%clk 0:02:59.8]} 6... Nxc3 {[%clk
0:02:20.9]} 7. bxc3 {[%clk 0:02:57.8]} 7... Bg7 {[%clk 0:02:20.4]} 8. d4 {[%clk
0:02:48.2]} 8... O-O {[%clk 0:02:16.8]} 9. e4 {[%clk 0:02:44.5]} 9... c5 {[%clk
0:02:07.6]} 10. Be3 {[%clk 0:02:40.1]} 10... cxd4 {[%clk 0:02:00.2]} 11. Bxd4
{[%clk 0:02:39]} 11... Nc6 {[%clk 0:01:58.3]} 12. Bxg7 {[%clk 0:02:38.3]} 12...
Kxg7 {[%clk 0:01:59.2]} 13. Be2 {[%clk 0:02:34.3]} 13... Qb6 {[%clk 0:01:43.6]}
14. O-O {[%clk 0:02:30.4]} 14... Be6 {[%clk 0:01:41.6]} 15. c4 {[%clk 0:02:21]}
15... Rfd8 {[%clk 0:01:23.7]} 16. Rfb1 {[%clk 0:02:19.8]} 16... Bg4 {[%clk
0:00:48.1]} 17. Qxb6 {[%clk 0:02:16.7]} 17... axb6 {[%clk 0:00:46.7]} 18. Rxb6
{[%clk 0:02:16.7]} 18... Bxf3 {[%clk 0:00:40.5]} 19. Bxf3 {[%clk 0:02:16.4]}
19... Rd2 {[%clk 0:00:38]} 20. a4 {[%clk 0:02:16.1]} 20... Ne5 {[%clk
0:00:34.3]} 21. Rxb7 {[%clk 0:02:13.9]} 21... Kf6 {[%clk 0:00:23.4]} 22. a5
{[%clk 0:02:12.8]} 22... Rd6 {[%clk 0:00:18.2]} 23. Be2 {[%clk 0:02:08.5]} 23...
Rda6 {[%clk 0:00:16.3]} 24. f4 {[%clk 0:02:07]} 24... Nc6 {[%clk 0:00:16.4]} 25.
e5+ {[%clk 0:02:04]} 25... Ke6 {[%clk 0:00:16.6]} 26. Bf3 {[%clk 0:02:03.1]}
26... Nxa5 {[%clk 0:00:13.2]} 27. Rb5 {[%clk 0:01:41.5]} 27... R8a7 {[%clk
0:00:13.3]} 28. c5 {[%clk 0:01:38]} 28... Nc6 {[%clk 0:00:01.5]} 29. Rd1 {[%clk
0:01:35.3]} 29... f6 {[%clk 0:00:01.6]} 30. Rb6 {[%clk 0:01:34.2]} 1-0

[Event "*** SCC Grand Prix: Titled Tuesday Blitz"]
[Site "Chess.com"]
[Date "2020.06.09"]
[Round "2"]
[White "Ceejay271"]
[Black "trriinu"]
[Result "1-0"]
[WhiteElo "2398"]
[BlackElo "2000"]
[TimeControl "180+1"]
[EndTime "9:16:51 PDT"]
[Termination "Ceejay271 won by resignation"]

1. d4 {[%clk 0:03:00.9]} 1... g6 {[%clk 0:02:56.1]} 2. c4 {[%clk 0:03:00.4]}
2... Bg7 {[%clk 0:02:56.4]} 3. Nf3 {[%clk 0:02:59.8]} 3... c5 {[%clk 0:02:56.3]}
4. d5 {[%clk 0:02:59.2]} 4... d6 {[%clk 0:02:55.7]} 5. Nc3 {[%clk 0:02:58.8]}
5... Nf6 {[%clk 0:02:52.7]} 6. e4 {[%clk 0:02:58.2]} 6... O-O {[%clk 0:02:52.5]}
7. Bd3 {[%clk 0:02:55.8]} 7... Bg4 {[%clk 0:02:50.9]} 8. h3 {[%clk 0:02:54.5]}
8... Bxf3 {[%clk 0:02:50.9]} 9. Qxf3 {[%clk 0:02:50.6]} 9... Nbd7 {[%clk
0:02:47.9]} 10. Qd1 {[%clk 0:02:45.7]} 10... Ne5 {[%clk 0:02:41.3]} 11. Be2
{[%clk 0:02:45]} 11... a6 {[%clk 0:02:31.3]} 12. a4 {[%clk 0:02:42.2]} 12... Qc7
{[%clk 0:02:14.7]} 13. O-O {[%clk 0:02:39.2]} 13... e6 {[%clk 0:02:07]} 14. f4
{[%clk 0:02:36.2]} 14... Ned7 {[%clk 0:02:06.9]} 15. dxe6 {[%clk 0:02:31.2]}
15... fxe6 {[%clk 0:02:06.9]} 16. Be3 {[%clk 0:02:29.8]} 16... Rad8 {[%clk
0:01:23.9]} 17. Qd2 {[%clk 0:02:18.5]} 17... Rfe8 {[%clk 0:01:01.7]} 18. Rad1
{[%clk 0:02:16.7]} 18... Nb6 {[%clk 0:00:58.7]} 19. b3 {[%clk 0:01:51.3]} 19...
Nc8 {[%clk 0:00:30.5]} 20. Kh1 {[%clk 0:01:39.9]} 20... Kh8 {[%clk 0:00:29.2]}
21. f5 {[%clk 0:01:37.3]} 21... exf5 {[%clk 0:00:23.9]} 22. exf5 {[%clk
0:01:37.1]} 22... gxf5 {[%clk 0:00:18]} 23. Rxf5 {[%clk 0:01:34.9]} 23... Ne7
{[%clk 0:00:18.2]} 24. Rf2 {[%clk 0:01:24.2]} 24... Ng6 {[%clk 0:00:18.2]} 25.
Bg5 {[%clk 0:01:22.2]} 25... Rd7 {[%clk 0:00:16.6]} 26. Bxf6 {[%clk 0:01:15.5]}
1-0

[Event "*** SCC Grand Prix: Titled Tuesday Blitz"]
[Site "Chess.com"]
[Date "2020.06.09"]
[Round "2"]
[White "chesstrainer2042"]
[Black "ARTHURMOTIVATOR"]
[Result "1-0"]
[WhiteElo "2467"]
[BlackElo "2261"]
[TimeControl "180+1"]
[EndTime "9:16:56 PDT"]
[Termination "chesstrainer2042 won by resignation"]

1. e4 {[%clk 0:03:00.9]} 1... c6 {[%clk 0:02:58.9]} 2. Nc3 {[%clk 0:02:58.7]}
2... d5 {[%clk 0:02:58.6]} 3. Nf3 {[%clk 0:02:59.2]} 3... dxe4 {[%clk
0:02:58.7]} 4. Nxe4 {[%clk 0:02:59]} 4... Nf6 {[%clk 0:02:57.8]} 5. Qe2 {[%clk
0:02:59.5]} 5... Nxe4 {[%clk 0:02:56.3]} 6. Qxe4 {[%clk 0:02:59.6]} 6... Nd7
{[%clk 0:02:56.2]} 7. Bc4 {[%clk 0:02:47.4]} 7... Nf6 {[%clk 0:02:53.5]} 8. Qe2
{[%clk 0:02:45.5]} 8... Bf5 {[%clk 0:02:43.7]} 9. d4 {[%clk 0:02:37.1]} 9... e6
{[%clk 0:02:42.9]} 10. O-O {[%clk 0:02:36.6]} 10... Be7 {[%clk 0:02:38.7]} 11.
c3 {[%clk 0:02:34.8]} 11... O-O {[%clk 0:02:37.4]} 12. Ne5 {[%clk 0:02:35]}
12... Nd7 {[%clk 0:02:20.9]} 13. Bf4 {[%clk 0:02:34]} 13... Nxe5 {[%clk
0:02:04.6]} 14. Bxe5 {[%clk 0:02:34]} 14... Bd6 {[%clk 0:01:55.1]} 15. Rad1
{[%clk 0:02:33.5]} 15... Qc7 {[%clk 0:01:48.7]} 16. Bd3 {[%clk 0:02:27.3]} 16...
Bg6 {[%clk 0:01:39.6]} 17. f4 {[%clk 0:02:17.6]} 17... Rad8 {[%clk 0:01:32.7]}
18. Bxg6 {[%clk 0:02:07.1]} 18... hxg6 {[%clk 0:01:31.4]} 19. Rd3 {[%clk
0:02:07.6]} 19... c5 {[%clk 0:00:54.9]} 20. Rh3 {[%clk 0:02:07.1]} 20... cxd4
{[%clk 0:00:47.6]} 21. cxd4 {[%clk 0:02:07.1]} 21... f6 {[%clk 0:00:46.5]} 22.
Bxd6 {[%clk 0:01:58.9]} 22... Rxd6 {[%clk 0:00:44.5]} 23. Qg4 {[%clk 0:01:56.1]}
23... Qf7 {[%clk 0:00:28.7]} 24. Qh4 {[%clk 0:01:55.3]} 24... Qe8 {[%clk
0:00:28.7]} 25. Qh7+ {[%clk 0:01:45.9]} 25... Kf7 {[%clk 0:00:28.7]} 26. Rg3
{[%clk 0:01:43.1]} 26... g5 {[%clk 0:00:23.8]} 27. fxg5 {[%clk 0:01:38]} 27...
f5 {[%clk 0:00:23.5]} 28. g6+ {[%clk 0:01:34.7]} 28... Ke7 {[%clk 0:00:22.3]}
29. Qxg7+ {[%clk 0:01:34.6]} 29... Kd8 {[%clk 0:00:19.7]} 30. Rc1 {[%clk
0:01:24.2]} 30... Rg8 {[%clk 0:00:16]} 1-0

[Event "*** SCC Grand Prix: Titled Tuesday Blitz"]
[Site "Chess.com"]
[Date "2020.06.09"]
[Round "2"]
[White "ftorodent"]
[Black "Jadeit90"]
[Result "1-0"]
[WhiteElo "2661"]
[BlackElo "2304"]
[TimeControl "180+1"]
[EndTime "9:16:58 PDT"]
[Termination "ftorodent won by resignation"]

1. d4 {[%clk 0:03:00.9]} 1... g6 {[%clk 0:02:59.9]} 2. c4 {[%clk 0:03:00.3]}
2... Bg7 {[%clk 0:03:00.4]} 3. e4 {[%clk 0:03:00.4]} 3... c5 {[%clk 0:03:00.8]}
4. d5 {[%clk 0:02:59.5]} 4... d6 {[%clk 0:03:01]} 5. Bd3 {[%clk 0:02:56.3]} 5...
Nf6 {[%clk 0:03:01.4]} 6. Nc3 {[%clk 0:02:55.6]} 6... O-O {[%clk 0:03:02]} 7.
Nf3 {[%clk 0:02:36.6]} 7... e5 {[%clk 0:03:01.8]} 8. O-O {[%clk 0:02:34.9]} 8...
Na6 {[%clk 0:03:01.7]} 9. a3 {[%clk 0:02:34.3]} 9... Nc7 {[%clk 0:03:02]} 10. b4
{[%clk 0:02:33.4]} 10... b6 {[%clk 0:03:01.5]} 11. Rb1 {[%clk 0:02:27.9]} 11...
Nh5 {[%clk 0:03:01.5]} 12. Re1 {[%clk 0:02:18.6]} 12... Nf4 {[%clk 0:02:59.7]}
13. Bf1 {[%clk 0:02:12.6]} 13... f5 {[%clk 0:02:59.2]} 14. Bxf4 {[%clk
0:02:06.4]} 14... exf4 {[%clk 0:02:58.8]} 15. e5 {[%clk 0:02:05.3]} 15... dxe5
{[%clk 0:02:57.4]} 16. Nxe5 {[%clk 0:02:05.4]} 16... Qd6 {[%clk 0:02:57.7]} 17.
bxc5 {[%clk 0:01:25.8]} 17... bxc5 {[%clk 0:02:55.8]} 18. Nc6 {[%clk 0:01:04.1]}
18... Bxc3 {[%clk 0:02:53.9]} 19. Re7 {[%clk 0:00:51.8]} 19... Bf6 {[%clk
0:02:46.5]} 20. Re2 {[%clk 0:00:51.3]} 20... f3 {[%clk 0:02:42.9]} 21. gxf3
{[%clk 0:00:50.5]} 21... Bd7 {[%clk 0:02:28.1]} 22. Na5 {[%clk 0:00:50.4]} 22...
Qf4 {[%clk 0:02:20.9]} 23. d6 {[%clk 0:00:41.8]} 23... Ne6 {[%clk 0:02:16.1]}
24. Rb7 {[%clk 0:00:38.8]} 24... Rad8 {[%clk 0:02:14.7]} 25. Rxd7 {[%clk
0:00:38.2]} 25... Rxd7 {[%clk 0:02:13.6]} 26. Rxe6 {[%clk 0:00:38.8]} 26... Be5
{[%clk 0:02:10.3]} 27. Bg2 {[%clk 0:00:31.9]} 27... Qxh2+ {[%clk 0:02:09.2]} 28.
Kf1 {[%clk 0:00:31.9]} 28... Rxd6 {[%clk 0:02:05.9]} 29. Rxd6 {[%clk 0:00:31.1]}
29... Bxd6 {[%clk 0:02:06.8]} 30. Qd5+ {[%clk 0:00:30.7]} 30... Kh8 {[%clk
0:02:00.9]} 31. Nb7 {[%clk 0:00:30.1]} 31... Be5 {[%clk 0:01:48.3]} 32. Nxc5
{[%clk 0:00:28.4]} 32... Qf4 {[%clk 0:01:43.3]} 33. Nd3 {[%clk 0:00:28.1]} 33...
Qd4 {[%clk 0:01:28.9]} 34. Qxe5+ {[%clk 0:00:28.1]} 34... Qxe5 {[%clk
0:01:28.7]} 35. Nxe5 {[%clk 0:00:28.5]} 35... Re8 {[%clk 0:01:28.9]} 36. f4
{[%clk 0:00:28.9]} 36... g5 {[%clk 0:01:28.1]} 37. Nf7+ {[%clk 0:00:28.9]} 37...
Kg7 {[%clk 0:01:28]} 38. Nxg5 {[%clk 0:00:29.6]} 38... Rc8 {[%clk 0:01:26.7]}
39. Bd5 {[%clk 0:00:28.6]} 39... Rc5 {[%clk 0:01:24.1]} 40. Ne6+ {[%clk
0:00:28.2]} 1-0

[Event "*** SCC Grand Prix: Titled Tuesday Blitz"]
[Site "Chess.com"]
[Date "2020.06.09"]
[Round "2"]
[White "Boninknights"]
[Black "Rish_97"]
[Result "0-1"]
[WhiteElo "2352"]
[BlackElo "2696"]
[TimeControl "180+1"]
[EndTime "9:16:59 PDT"]
[Termination "Rish_97 won by resignation"]

1. d4 {[%clk 0:02:59.4]} 1... Nf6 {[%clk 0:03:00]} 2. Nf3 {[%clk 0:02:59]} 2...
e6 {[%clk 0:03:00.4]} 3. c4 {[%clk 0:02:58.5]} 3... d5 {[%clk 0:03:00.5]} 4. Nc3
{[%clk 0:02:57.1]} 4... Be7 {[%clk 0:03:00.8]} 5. Bg5 {[%clk 0:02:55]} 5... h6
{[%clk 0:03:00.5]} 6. Bxf6 {[%clk 0:02:52.7]} 6... Bxf6 {[%clk 0:03:00.9]} 7. e3
{[%clk 0:02:52.4]} 7... O-O {[%clk 0:03:01.1]} 8. Rc1 {[%clk 0:02:49.1]} 8... c6
{[%clk 0:02:53.5]} 9. a3 {[%clk 0:02:44.8]} 9... Nd7 {[%clk 0:02:52.8]} 10. h3
{[%clk 0:02:43.4]} 10... Be7 {[%clk 0:02:48.2]} 11. Qc2 {[%clk 0:02:40.3]} 11...
Bd6 {[%clk 0:02:46.7]} 12. Bd3 {[%clk 0:02:36.8]} 12... Qe7 {[%clk 0:02:45.5]}
13. O-O {[%clk 0:02:35.4]} 13... a6 {[%clk 0:02:40.4]} 14. Rfe1 {[%clk 0:02:28]}
14... f5 {[%clk 0:02:35.2]} 15. cxd5 {[%clk 0:02:24.5]} 15... cxd5 {[%clk
0:02:36.1]} 16. Na4 {[%clk 0:02:19.2]} 16... b5 {[%clk 0:02:15.2]} 17. Nc5
{[%clk 0:02:13.1]} 17... Nxc5 {[%clk 0:02:09.4]} 18. dxc5 {[%clk 0:02:10.5]}
18... Bc7 {[%clk 0:02:10.1]} 19. Nd4 {[%clk 0:02:05.6]} 19... Qf6 {[%clk
0:01:59.1]} 20. b4 {[%clk 0:01:55.8]} 20... e5 {[%clk 0:01:57.9]} 21. Nb3 {[%clk
0:01:54.1]} 21... e4 {[%clk 0:01:55]} 22. Bf1 {[%clk 0:01:50.9]} 22... f4 {[%clk
0:01:55.3]} 23. exf4 {[%clk 0:01:45.9]} 23... Qxf4 {[%clk 0:01:54]} 24. g3
{[%clk 0:01:44.4]} 24... Qg5 {[%clk 0:01:49.1]} 25. Bg2 {[%clk 0:01:39.6]} 25...
h5 {[%clk 0:01:41.9]} 26. h4 {[%clk 0:01:26.7]} 26... Qf6 {[%clk 0:01:37.8]} 27.
Rcd1 {[%clk 0:01:24.9]} 27... Be6 {[%clk 0:01:33.2]} 28. Nd4 {[%clk 0:01:22.8]}
28... Bg4 {[%clk 0:01:33.3]} 29. Rd2 {[%clk 0:01:19.9]} 29... Be5 {[%clk
0:01:33.4]} 30. Qc3 {[%clk 0:01:17.4]} 30... Ra7 {[%clk 0:01:10.3]} 31. Qe3
{[%clk 0:01:14.9]} 31... Raf7 {[%clk 0:01:08.2]} 32. Nc2 {[%clk 0:00:51.6]}
32... Bc3 {[%clk 0:01:05.7]} 33. Rxd5 {[%clk 0:00:49]} 33... Bxe1 {[%clk
0:01:04.4]} 34. Nxe1 {[%clk 0:00:47.9]} 34... Qxf2+ {[%clk 0:00:59.5]} 35. Qxf2
{[%clk 0:00:47.3]} 35... Rxf2 {[%clk 0:01:00.4]} 0-1

[Event "*** SCC Grand Prix: Titled Tuesday Blitz"]
[Site "Chess.com"]
[Date "2020.06.09"]
[Round "2"]
[White "Arkady_Gitelson"]
[Black "dosto07"]
[Result "1/2-1/2"]
[WhiteElo "2491"]
[BlackElo "2116"]
[TimeControl "180+1"]
[EndTime "9:17:02 PDT"]
[Termination "Game drawn by agreement"]

1. Nf3 {[%clk 0:03:00.9]} 1... d5 {[%clk 0:02:59]} 2. g3 {[%clk 0:03:00.8]} 2...
Nf6 {[%clk 0:02:59.1]} 3. Bg2 {[%clk 0:03:00.2]} 3... Bg4 {[%clk 0:02:58.7]} 4.
O-O {[%clk 0:03:00.1]} 4... c6 {[%clk 0:02:53.8]} 5. d4 {[%clk 0:02:59]} 5...
Nbd7 {[%clk 0:02:51.8]} 6. Nbd2 {[%clk 0:02:58.8]} 6... e6 {[%clk 0:02:51.2]} 7.
Re1 {[%clk 0:02:58.8]} 7... Bd6 {[%clk 0:02:50.5]} 8. e4 {[%clk 0:02:58.8]} 8...
dxe4 {[%clk 0:02:50]} 9. Nxe4 {[%clk 0:02:59.7]} 9... Nxe4 {[%clk 0:02:49.8]}
10. Rxe4 {[%clk 0:03:00.6]} 10... Nf6 {[%clk 0:02:49.9]} 11. Re1 {[%clk
0:03:00.5]} 11... O-O {[%clk 0:02:49.4]} 12. c3 {[%clk 0:03:00.6]} 12... Qb6
{[%clk 0:02:42.8]} 13. Qb3 {[%clk 0:02:59.6]} 13... h6 {[%clk 0:02:35.4]} 14.
Nd2 {[%clk 0:02:57.6]} 14... Bf5 {[%clk 0:02:29.3]} 15. Nc4 {[%clk 0:02:56.8]}
15... Qxb3 {[%clk 0:02:26.6]} 16. axb3 {[%clk 0:02:57.7]} 16... Bc7 {[%clk
0:02:25.1]} 17. b4 {[%clk 0:02:54.7]} 17... a6 {[%clk 0:02:22.6]} 18. Na5 {[%clk
0:02:51.2]} 18... Bxa5 {[%clk 0:02:21.4]} 19. Rxa5 {[%clk 0:02:50.5]} 19... Nd5
{[%clk 0:02:18.7]} 20. Bd2 {[%clk 0:02:46.5]} 20... Rfd8 {[%clk 0:02:16.6]} 21.
Bf1 {[%clk 0:02:37]} 21... Rac8 {[%clk 0:02:15.4]} 22. c4 {[%clk 0:02:31]} 22...
Nf6 {[%clk 0:02:13.3]} 23. Bc3 {[%clk 0:02:31]} 23... Ne4 {[%clk 0:02:10.6]} 24.
Re5 {[%clk 0:02:11.2]} 24... Nxc3 {[%clk 0:01:51.8]} 25. bxc3 {[%clk 0:02:12.1]}
25... Bg6 {[%clk 0:01:47.3]} 26. R5e3 {[%clk 0:02:06]} 26... Kf8 {[%clk
0:01:47.2]} 27. Ra1 {[%clk 0:01:57.9]} 27... Ra8 {[%clk 0:01:39.8]} 28. Bg2
{[%clk 0:01:51.9]} 28... Rac8 {[%clk 0:01:34.6]} 29. Ra5 {[%clk 0:01:41]} 29...
Ra8 {[%clk 0:01:31.7]} 30. h4 {[%clk 0:01:39.3]} 30... Rac8 {[%clk 0:01:26.5]}
31. d5 {[%clk 0:01:22.8]} 31... exd5 {[%clk 0:01:23.6]} 32. cxd5 {[%clk
0:01:23.2]} 32... cxd5 {[%clk 0:01:16.1]} 33. Rxd5 {[%clk 0:01:22.8]} 33... Rxd5
{[%clk 0:01:10.7]} 34. Bxd5 {[%clk 0:01:23.7]} 34... Rc7 {[%clk 0:01:10.6]} 35.
c4 {[%clk 0:01:19.5]} 35... f6 {[%clk 0:01:09.5]} 36. c5 {[%clk 0:01:09.8]}
36... Bf7 {[%clk 0:01:08.5]} 37. Bf3 {[%clk 0:01:08.7]} 37... Bc4 {[%clk
0:01:00]} 38. Rc3 {[%clk 0:01:03.2]} 38... Bb5 {[%clk 0:00:59.3]} 39. Kg2 {[%clk
0:01:03]} 39... Bc6 {[%clk 0:00:57.8]} 40. Re3 {[%clk 0:00:57.6]} 40... a5
{[%clk 0:00:53.2]} 1/2-1/2

[Event "*** SCC Grand Prix: Titled Tuesday Blitz"]
[Site "Chess.com"]
[Date "2020.06.09"]
[Round "2"]
[White "fischercapa"]
[Black "BocharovD"]
[Result "0-1"]
[WhiteElo "2364"]
[BlackElo "2734"]
[TimeControl "180+1"]
[EndTime "9:17:07 PDT"]
[Termination "BocharovD won on time"]

1. e4 {[%clk 0:03:00.8]} 1... c5 {[%clk 0:02:59.8]} 2. Nf3 {[%clk 0:03:00.6]}
2... d6 {[%clk 0:03:00.4]} 3. d4 {[%clk 0:03:00.8]} 3... cxd4 {[%clk 0:03:01.3]}
4. Nxd4 {[%clk 0:03:01.4]} 4... Nf6 {[%clk 0:03:01.9]} 5. Nc3 {[%clk 0:03:01.6]}
5... a6 {[%clk 0:03:02.5]} 6. Bg5 {[%clk 0:02:58.2]} 6... Nbd7 {[%clk
0:03:02.5]} 7. Qd2 {[%clk 0:02:55.7]} 7... h6 {[%clk 0:02:59.3]} 8. Bh4 {[%clk
0:02:55.2]} 8... e6 {[%clk 0:02:47.2]} 9. f3 {[%clk 0:02:54.1]} 9... Nxe4 {[%clk
0:02:42.7]} 10. Nxe4 {[%clk 0:02:28.5]} 10... Qxh4+ {[%clk 0:02:41.7]} 11. g3
{[%clk 0:02:29]} 11... Qd8 {[%clk 0:02:40.9]} 12. O-O-O {[%clk 0:02:28.8]} 12...
Be7 {[%clk 0:02:40]} 13. f4 {[%clk 0:02:27.1]} 13... O-O {[%clk 0:02:34.9]} 14.
Bg2 {[%clk 0:02:25.8]} 14... Qb6 {[%clk 0:02:21.4]} 15. Kb1 {[%clk 0:02:12.6]}
15... Nf6 {[%clk 0:02:13.6]} 16. g4 {[%clk 0:01:58.9]} 16... Nxg4 {[%clk
0:02:12.7]} 17. Bf3 {[%clk 0:01:54.9]} 17... Nf6 {[%clk 0:02:11]} 18. Rhg1
{[%clk 0:01:54.1]} 18... Kh8 {[%clk 0:02:11.2]} 19. Qg2 {[%clk 0:01:40.9]} 19...
Rg8 {[%clk 0:02:09]} 20. Nb3 {[%clk 0:01:12]} 20... d5 {[%clk 0:02:01.5]} 21.
Nc3 {[%clk 0:00:40.7]} 21... Bd7 {[%clk 0:01:55.4]} 22. f5 {[%clk 0:00:41.2]}
22... Rac8 {[%clk 0:01:54]} 23. fxe6 {[%clk 0:00:41.2]} 23... fxe6 {[%clk
0:01:34.3]} 24. Qh3 {[%clk 0:00:22.2]} 24... e5 {[%clk 0:01:25.4]} 25. Qh4
{[%clk 0:00:15.8]} 25... Bf5 {[%clk 0:01:15.8]} 0-1

[Event "*** SCC Grand Prix: Titled Tuesday Blitz"]
[Site "Chess.com"]
[Date "2020.06.09"]
[Round "2"]
[White "Glek_Igor"]
[Black "HElissalt"]
[Result "1-0"]
[WhiteElo "2446"]
[BlackElo "2222"]
[TimeControl "180+1"]
[EndTime "9:17:09 PDT"]
[Termination "Glek_Igor won on time"]

1. e4 {[%clk 0:03:00.9]} 1... d6 {[%clk 0:02:16.3]} 2. d4 {[%clk 0:02:58.6]}
2... Nf6 {[%clk 0:02:13.1]} 3. Nc3 {[%clk 0:02:58.8]} 3... e5 {[%clk 0:02:12.6]}
4. Nf3 {[%clk 0:02:57.4]} 4... Nbd7 {[%clk 0:02:11.7]} 5. Bc4 {[%clk 0:02:57.6]}
5... Be7 {[%clk 0:02:11.4]} 6. O-O {[%clk 0:02:58.1]} 6... O-O {[%clk
0:02:11.4]} 7. a4 {[%clk 0:02:58.5]} 7... c6 {[%clk 0:02:10.3]} 8. Re1 {[%clk
0:02:57.4]} 8... a5 {[%clk 0:02:08.9]} 9. Be3 {[%clk 0:02:54.7]} 9... Nb6 {[%clk
0:02:08.2]} 10. Bb3 {[%clk 0:02:51]} 10... Nfd7 {[%clk 0:02:07.2]} 11. Ne2
{[%clk 0:02:39.9]} 11... exd4 {[%clk 0:02:02.3]} 12. Nfxd4 {[%clk 0:02:31.9]}
12... Nc5 {[%clk 0:02:01.6]} 13. Ng3 {[%clk 0:02:28.8]} 13... Nxb3 {[%clk
0:01:44.9]} 14. cxb3 {[%clk 0:02:17.9]} 14... d5 {[%clk 0:01:43.9]} 15. e5
{[%clk 0:02:14]} 15... Nd7 {[%clk 0:01:32.8]} 16. f4 {[%clk 0:01:53.1]} 16...
Nc5 {[%clk 0:01:26.6]} 17. Rc1 {[%clk 0:01:48.9]} 17... Ne6 {[%clk 0:01:04.3]}
18. f5 {[%clk 0:01:45.7]} 18... Nxd4 {[%clk 0:01:03.2]} 19. Bxd4 {[%clk
0:01:43.9]} 19... f6 {[%clk 0:00:52.2]} 20. e6 {[%clk 0:01:31.9]} 20... Qc7
{[%clk 0:00:23.8]} 21. Qg4 {[%clk 0:01:25.8]} 21... Kh8 {[%clk 0:00:20.7]} 22.
Nh5 {[%clk 0:01:23.3]} 22... Rg8 {[%clk 0:00:20.3]} 23. Nf4 {[%clk 0:01:17.4]}
23... h6 {[%clk 0:00:16.1]} 24. Re3 {[%clk 0:01:08.1]} 24... c5 {[%clk
0:00:08.5]} 25. Rh3 {[%clk 0:01:01.2]} 1-0